[Event "FIDE WAC U1700 2021"]
[Site "Rhodes"]
[Date "2021.10.18"]
[Round "2.5"]
[White "Ruzic, Milos"]
[Black "Abdivaliev, Daniial"]
[Result "1-0"]
[ECO "C67"]
[WhiteElo "1666"]
[BlackElo "1482"]
[Annotator "NA RC"]
[PlyCount "91"]
[EventDate "2021.10.17"]
[EventType "swiss"]
[EventCountry "GRE"]
[SourceTitle "playchess.com"]
[Source "ChessBase"]
[SourceQuality "1"]
[TimeControl "5400+30"]

1. e4 {[%emt 0:00:06]} e5 {[%emt 0:01:04]} 2. Nf3 {[%emt 0:01:06]} Nc6 {[%emt 0:00:06]} 3. Bb5 {[%emt 0:00:46]} Nf6 {[%emt 0:00:19]} 4. O-O {[%emt 0:01:43]} Nxe4 {[%emt 0:00:07]} 5. d4 {[%emt 0:00:17]} Be7 {[%emt 0:09:41]} 6. dxe5 {[%emt 0:00:58]} O-O {[%emt 0:00:13]} 7. Bf4 {[%emt 0:09:28]} d5 {[%emt 0:03:51]} 8. h3 {[%emt 0:05:50]} Bc5 {[%emt 0:06:42]} 9. c3 {[%emt 0:02:07]} Ne7 {[%emt 0:00:21]} 10. Nbd2 {[%emt 0:07:51]} c6 {[%emt 0:05:20]} 11. Bd3 {[%emt 0:04:36]} f5 {[%emt 0:00:51]} 12. exf6 {[%emt 0:01:04]} Nxf6 {[%emt 0:00:25]} 13. Qc2 {[%emt 0:08:42]} h6 {[%emt 0:08:51]} 14. Rae1 {[%emt 0:03:36]} Nh5 {[%emt 0:01:34]} 15. Be5 {[%emt 0:08:30]} Nf4 {[%emt 0:01:39]} 16. Nd4 {[%emt 0:10:21]} Nxd3 {[%emt 0:04:14]} 17. Qxd3 {[%emt 0:01:07]} Nf5 {[%emt 0:00:15]} 18. N2b3 {[%emt 0:01:33]} Bb6 {[%emt 0:04:40]} 19. Nxf5 {[%emt 0:01:10]} Bxf5 {[%emt 0:00:34]} 20. Qg3 {[%emt 0:00:15]} Rf7 {[%emt 0:03:01]} 21. Nd4 {[%emt 0:00:52]} Bd7 {[%emt 0:02:35]} 22. Bd6 {[%emt 0:08:15]} Bxd4 {[%emt 0:00:52]} 23. cxd4 {[%emt 0:00:14]} Qb6 {[%emt 0:03:07]} 24. Qc3 {[%emt 0:01:05]} Bf5 {[%emt 0:00:47]} 25. Re3 {[%emt 0:00:33]} Rd8 {[%emt 0:02:23]} 26. Be5 {[%emt 0:00:44]} Be4 {[%emt 0:00:47]} 27. Rg3 {[%emt 0:02:11]} Kh7 {[%emt 0:01:12]} 28. Re1 {[%emt 0:02:24]} Rdf8 {[%emt 0:00:42]} 29. f3 {[%emt 0:00:28]} Bg6 {[%emt 0:00:50]} 30. Bd6 {[%emt 0:02:03]} Rd8 {[%emt 0:00:24]} 31. Rxg6 {[%emt 0:14:00]} Kxg6 {[%emt 0:22:34]} 32. Qd3+ {[%emt 0:00:00]} Kh5 {[%emt 0:01:28]} 33. g4+ {[%emt 0:00:00]} Kh4 {[%emt 0:00:32]} 34. Be5 {[%emt 0:00:00]} Rdf8 {[%emt 0:03:28]} 35. Qg6 {[%emt 0:00:00]} Rf4 {[%emt 0:00:42]} 36. Re2 {[%emt 0:00:00]} R8f6 {[%emt 0:03:10]} 37. Qh5+ {[%emt 0:00:00]} Kg3 {[%emt 0:00:08]} 38. Rg2+ {[%emt 0:00:00]} Kxf3 {[%emt 0:00:08]} 39. g5+ {[%emt 0:00:00]} Ke4 {[%emt 0:00:33]} 40. gxf6 {[%emt 0:00:00]} Rxf6 {[%emt 0:04:22]} 41. Qg4+ {[%emt 0:00:36]} Rf4 {[%emt 0:01:48]} 42. Qxf4+ {[%emt 0:00:13]} Kd3 {[%emt 0:00:03]} 43. Qd2+ {[%emt 0:00:58]} Kc4 {[%emt 0:01:37]} 44. Qc3+ {[%emt 0:00:11]} Kb5 {[%emt 0:00:03]} 45. Qb3+ {[%emt 0:00:04]} Ka6 {[%emt 0:00:09]} 46. Qxb6+ {[%emt 0:00:03]} 1-0

[Event "FIDE WAC U1700 2021"]
[Site "Rhodes"]
[Date "2021.10.19"]
[Round "3.1"]
[White "Sodbilegt, Naranbold"]
[Black "Alhejab, Meshal"]
[Result "1-0"]
[ECO "C41"]
[WhiteElo "1638"]
[BlackElo "1681"]
[Annotator "NA RC"]
[PlyCount "71"]
[EventDate "2021.10.17"]
[EventType "swiss"]
[EventCountry "GRE"]
[SourceTitle "playchess.com"]
[Source "ChessBase"]
[SourceQuality "1"]
[TimeControl "5400+30"]

1. e4 {[%emt 0:00:06]} d6 {[%emt 0:00:04]} 2. d4 {[%emt 0:00:07]} Nf6 {[%emt 0:00:05]} 3. Nc3 {[%emt 0:00:10]} Nbd7 {[%emt 0:00:09]} 4. Nf3 {[%emt 0:00:20]} e5 {[%emt 0:00:08]} 5. Bc4 {[%emt 0:00:25]} Be7 {[%emt 0:00:07]} 6. O-O {[%emt 0:00:18]} O-O {[%emt 0:00:14]} 7. a4 {[%emt 0:00:28]} c6 {[%emt 0:02:51]} 8. Re1 {[%emt 0:00:31]} b6 {[%emt 0:00:24]} 9. Bg5 {[%emt 0:00:18]} h6 {[%emt 0:08:16]} 10. Bxf6 {[%emt 0:03:56]} Bxf6 {[%emt 0:00:11]} 11. d5 {[%emt 0:00:11]} c5 {[%emt 0:06:55]} 12. a5 {[%emt 0:01:10]} bxa5 {[%emt 0:02:02]} 13. Bd3 {[%emt 0:05:40]} Rb8 {[%emt 0:01:31]} 14. b3 {[%emt 0:01:25]} Re8 {[%emt 0:00:26]} 15. Nd2 {[%emt 0:00:53]} Nf8 {[%emt 0:06:04]} 16. Nc4 {[%emt 0:03:06]} g5 {[%emt 0:01:03]} 17. Nxa5 {[%emt 0:00:53]} Bd7 {[%emt 0:00:32]} 18. Nc4 {[%emt 0:00:42]} Qc7 {[%emt 0:01:19]} 19. Ne3 {[%emt 0:03:40]} Ng6 {[%emt 0:12:26]} 20. Ne2 {[%emt 0:01:06]} Nf4 {[%emt 0:03:43]} 21. Ng3 {[%emt 0:01:31]} Kh7 {[%emt 0:09:56]} 22. Ngf5 {[%emt 0:01:31]} Rg8 {[%emt 0:01:53]} 23. Bc4 {[%emt 0:10:21]} h5 {[%emt 0:03:19]} 24. Qd2 {[%emt 0:10:49]} Rb7 {[%emt 0:06:14]} 25. Qa5 {[%emt 0:01:36]} Qb8 {[%emt 0:00:17]} 26. Qa6 {[%emt 0:01:13]} Bxf5 {[%emt 0:03:23]} 27. Nxf5 {[%emt 0:00:16]} Rd8 {[%emt 0:00:18]} 28. Ra2 {[%emt 0:03:12]} Rdd7 {[%emt 0:00:57]} 29. Rea1 {[%emt 0:01:20]} Bd8 {[%emt 0:01:52]} 30. Qc6 {[%emt 0:01:55]} Rbc7 {[%emt 0:04:50]} 31. Qa4 {[%emt 0:00:29]} Be7 {[%emt 0:11:35]} 32. Bb5 {[%emt 0:02:51]} Bf8 {[%emt 0:05:04]} 33. g3 {[%emt 0:04:11]} Rb7 {[%emt 0:01:17]} 34. c4 {[%emt 0:04:06]} Rxb5 {[%emt 0:07:22]} 35. cxb5 {[%emt 0:00:50]} Nd3 {[%emt 0:00:34]} 36. b6 {[%emt 0:00:18]} 1-0

[Event "FIDE WAC U1700 2021"]
[Site "Rhodes"]
[Date "2021.10.19"]
[Round "3.2"]
[White "Abdulrahim, Salem"]
[Black "Ainakul, Mukhtar"]
[Result "*"]
[ECO "B51"]
[WhiteElo "1629"]
[BlackElo "1674"]
[Annotator "NA RC"]
[PlyCount "44"]
[EventDate "2021.10.17"]
[EventType "swiss"]
[EventCountry "GRE"]
[SourceTitle "playchess.com"]
[Source "ChessBase"]
[SourceQuality "1"]
[TimeControl "5400+30"]

1. e4 {[%emt 0:00:05]} c5 {[%emt 0:00:12]} 2. Nf3 {[%emt 0:00:11]} d6 {[%emt 0:00:18]} 3. Bb5+ {[%emt 0:00:22]} Nd7 {[%emt 0:00:11]} 4. c4 {[%emt 0:00:25]} g6 {[%emt 0:06:37]} 5. Nc3 {[%emt 0:00:22]} Bg7 {[%emt 0:01:02]} 6. d3 {[%emt 0:01:41]} a6 {[%emt 0:02:57]} 7. Ba4 {[%emt 0:00:25]} e6 {[%emt 0:02:37]} 8. O-O {[%emt 0:01:18]} Ne7 {[%emt 0:00:48]} 9. Bf4 {[%emt 0:10:35]} Qb6 {[%emt 0:08:24]} 10. Qd2 {[%emt 0:01:03]} O-O {[%emt 0:09:20]} 11. Bxd7 {[%emt 0:00:57]} Bxd7 {[%emt 0:00:31]} 12. Bh6 {[%emt 0:03:49]} Nc6 {[%emt 0:09:33]} 13. h4 {[%emt 0:00:00]} Ne5 {[%emt 0:07:56]} 14. Nxe5 {[%emt 0:04:08]} dxe5 {[%emt 0:01:35]} 15. Bxg7 {[%emt 0:04:23]} Kxg7 {[%emt 0:00:08]} 16. h5 {[%emt 0:00:17]} Qd8 {[%emt 0:09:01]} 17. Qe3 {[%emt 0:06:37]} b6 {[%emt 0:01:30]} 18. Qg3 {[%emt 0:02:00]} Qf6 {[%emt 0:03:13]} 19. f4 {[%emt 0:06:14]} exf4 {[%emt 0:01:36]} 20. Rxf4 {[%emt 0:01:08]} Qd4+ {[%emt 0:00:17]} 21. Kh2 {[%emt 0:00:16]} f6 {[%emt 0:06:17]} 22. Rg4 {[%emt 0:17:03]} Be8 {[%emt 0:11:37]} *

[Event "FIDE WAC U1700 2021"]
[Site "Rhodes"]
[Date "2021.10.19"]
[Round "3.3"]
[White "Bozkurt, Serkan"]
[Black "Perrakis, Polychronis"]
[Result "1/2-1/2"]
[ECO "E04"]
[WhiteElo "1668"]
[BlackElo "1627"]
[Annotator "NA RC"]
[PlyCount "95"]
[EventDate "2021.10.17"]
[EventType "swiss"]
[EventCountry "GRE"]
[SourceTitle "playchess.com"]
[Source "ChessBase"]
[SourceQuality "1"]
[TimeControl "5400+30"]

1. d4 {[%emt 0:00:03]} d5 {[%emt 0:01:11]} 2. Nf3 {[%emt 0:00:01]} Nf6 {[%emt 0:01:01]} 3. g3 {[%emt 0:00:07]} e6 {[%emt 0:03:48]} 4. Bg2 {[%emt 0:00:25]} c5 {[%emt 0:01:13]} 5. O-O {[%emt 0:00:57]} Nc6 {[%emt 0:01:05]} 6. c4 {[%emt 0:01:01]} dxc4 {[%emt 0:04:38]} 7. dxc5 {[%emt 0:00:32]} Qa5 {[%emt 0:09:58]} 8. Na3 {[%emt 0:04:38]} c3 {[%emt 0:08:37]} 9. bxc3 {[%emt 0:00:33]} Bxc5 {[%emt 0:03:59]} 10. Qb3 {[%emt 0:02:30]} O-O {[%emt 0:05:22]} 11. Nc4 {[%emt 0:06:21]} Qc7 {[%emt 0:02:10]} 12. Bf4 {[%emt 0:01:57]} Qe7 {[%emt 0:00:23]} 13. Nfe5 {[%emt 0:03:20]} Nd5 {[%emt 0:05:58]} 14. Nxc6 {[%emt 0:04:48]} bxc6 {[%emt 0:00:22]} 15. Na5 {[%emt 0:01:15]} Nxf4 {[%emt 0:06:37]} 16. Nxc6 {[%emt 0:02:20]} Nxe2+ {[%emt 0:02:06]} 17. Kh1 {[%emt 0:00:35]} Qc7 {[%emt 0:04:32]} 18. Qc4 {[%emt 0:04:38]} Bb7 {[%emt 0:02:47]} 19. Qxc5 {[%emt 0:09:15]} Bxc6 {[%emt 0:00:41]} 20. Qxc6 {[%emt 0:04:21]} Qxc6 {[%emt 0:00:35]} 21. Bxc6 {[%emt 0:00:01]} Rac8 {[%emt 0:00:18]} 22. Bf3 {[%emt 0:04:22]} Nxc3 {[%emt 0:00:36]} 23. Rfc1 {[%emt 0:00:12]} Rc5 {[%emt 0:03:41]} 24. Rab1 {[%emt 0:05:57]} Rfc8 {[%emt 0:01:07]} 25. Rb3 {[%emt 0:13:33]} g6 {[%emt 0:01:32]} 26. Rc2 {[%emt 0:09:49]} a5 {[%emt 0:01:17]} 27. Rd2 {[%emt 0:01:22]} R8c7 {[%emt 0:01:03]} 28. Kg2 {[%emt 0:01:15]} Kg7 {[%emt 0:00:17]} 29. g4 {[%emt 0:02:20]} e5 {[%emt 0:01:00]} 30. h4 {[%emt 0:04:18]} f5 {[%emt 0:01:59]} 31. g5 {[%emt 0:00:19]} e4 {[%emt 0:00:43]} 32. Bd1 {[%emt 0:00:01]} h6 {[%emt 0:01:39]} 33. Rb8 {[%emt 0:00:39]} hxg5 {[%emt 0:01:29]} 34. hxg5 {[%emt 0:01:09]} f4 {[%emt 0:00:16]} 35. Bb3 {[%emt 0:01:07]} Rxg5+ {[%emt 0:02:35]} 36. Kf1 {[%emt 0:02:13]} e3 {[%emt 0:06:28]} 37. Rg8+ {[%emt 0:00:21]} Kh7 {[%emt 0:01:08]} 38. fxe3 {[%emt 0:00:21]} fxe3 {[%emt 0:00:33]} 39. Rh2+ {[%emt 0:07:27]} Rh5 {[%emt 0:00:14]} 40. Rxh5+ {[%emt 0:01:35]} gxh5 {[%emt 0:00:06]} 41. Rg5 {[%emt 0:00:27]} a4 {[%emt 0:01:10]} 42. Bc2+ {[%emt 0:00:02]} Kh8 {[%emt 0:02:30]} 43. Rxh5+ {[%emt 0:00:19]} Kg8 {[%emt 0:00:56]} 44. Rh3 {[%emt 0:02:48]} Re7 {[%emt 0:04:32]} 45. a3 {[%emt 0:00:40]} Kg7 {[%emt 0:02:11]} 46. Rh7+ {[%emt 0:00:28]} Kf6 {[%emt 0:00:13]} 47. Rxe7 {[%emt 0:00:03]} Kxe7 {[%emt 0:00:22]} 48. Bxa4 {[%emt 0:00:11]} 1/2-1/2

[Event "FIDE WAC U1700 2021"]
[Site "Rhodes"]
[Date "2021.10.19"]
[Round "3.4"]
[White "Alrashidi, Yousef"]
[Black "Ruzic, Milos"]
[Result "*"]
[ECO "B08"]
[WhiteElo "1610"]
[BlackElo "1666"]
[Annotator "NA RC"]
[PlyCount "51"]
[EventDate "2021.10.17"]
[EventType "swiss"]
[EventCountry "GRE"]
[SourceTitle "playchess.com"]
[Source "ChessBase"]
[SourceQuality "1"]
[TimeControl "5400+30"]

1. e4 {[%emt 0:00:04]} d6 {[%emt 0:02:03]} 2. Nf3 {[%emt 0:00:22]} Nf6 {[%emt 0:00:29]} 3. Nc3 {[%emt 0:00:21]} g6 {[%emt 0:00:36]} 4. d4 {[%emt 0:00:35]} c6 {[%emt 0:00:30]} 5. h3 {[%emt 0:07:05]} Bg7 {[%emt 0:00:27]} 6. Bd3 {[%emt 0:00:15]} Nbd7 {[%emt 0:00:46]} 7. Be3 {[%emt 0:01:04]} e5 {[%emt 0:00:43]} 8. dxe5 {[%emt 0:00:21]} dxe5 {[%emt 0:00:40]} 9. O-O {[%emt 0:00:50]} O-O {[%emt 0:00:07]} 10. Qd2 {[%emt 0:00:24]} Re8 {[%emt 0:00:31]} 11. Rad1 {[%emt 0:02:43]} b5 {[%emt 0:04:19]} 12. Ne2 {[%emt 0:09:12]} Qe7 {[%emt 0:10:05]} 13. Bg5 {[%emt 0:04:39]} Nc5 {[%emt 0:03:21]} 14. Ng3 {[%emt 0:07:54]} Nxd3 {[%emt 0:20:58]} 15. cxd3 {[%emt 0:03:56]} Qd6 {[%emt 0:06:56]} 16. Bh6 {[%emt 0:02:24]} Bb7 {[%emt 0:05:08]} 17. Bxg7 {[%emt 0:00:30]} Kxg7 {[%emt 0:00:07]} 18. Qg5 {[%emt 0:00:34]} Kh8 {[%emt 0:00:20]} 19. d4 {[%emt 0:01:32]} Qe7 {[%emt 0:06:45]} 20. Nxe5 {[%emt 0:12:46]} c5 {[%emt 0:16:20]} 21. f4 {[%emt 0:04:59]} Nxe4 {[%emt 0:05:42]} 22. Qxe7 {[%emt 0:00:54]} Rxe7 {[%emt 0:00:25]} 23. Nxe4 {[%emt 0:01:26]} Bxe4 {[%emt 0:00:21]} 24. Rfe1 {[%emt 0:02:49]} f5 {[%emt 0:01:15]} 25. d5 {[%emt 0:00:54]} Kg7 {[%emt 0:03:50]} 26. d6 {[%emt 0:00:20]} *

[Event "FIDE WAC U1700 2021"]
[Site "Rhodes"]
[Date "2021.10.19"]
[Round "3.5"]
[White "Abubakirov, Khumid"]
[Black "Michailov, Andrej"]
[Result "1-0"]
[ECO "D00"]
[WhiteElo "1615"]
[BlackElo "1656"]
[Annotator "NA RC"]
[PlyCount "77"]
[EventDate "2021.10.17"]
[EventType "swiss"]
[EventCountry "GRE"]
[SourceTitle "playchess.com"]
[Source "ChessBase"]
[SourceQuality "1"]
[TimeControl "5400+30"]

1. Nf3 {[%emt 0:05:00]} d5 {[%emt 0:00:43]} 2. d4 {[%emt 0:00:30]} Nf6 {[%emt 0:00:38]} 3. Nc3 {[%emt 0:00:10]} Bf5 {[%emt 0:00:58]} 4. Nh4 {[%emt 0:00:59]} e6 {[%emt 0:10:21]} 5. Nxf5 {[%emt 0:00:15]} exf5 {[%emt 0:00:01]} 6. Qd3 {[%emt 0:00:11]} g6 {[%emt 0:00:20]} 7. Qb5+ {[%emt 0:00:11]} Nbd7 {[%emt 0:07:32]} 8. Qxb7 {[%emt 0:02:44]} Bg7 {[%emt 0:00:47]} 9. Nxd5 {[%emt 0:02:21]} Nxd5 {[%emt 0:04:25]} 10. Qxd5 {[%emt 0:00:17]} O-O {[%emt 0:00:17]} 11. c3 {[%emt 0:00:15]} Qe7 {[%emt 0:00:29]} 12. Qc6 {[%emt 0:02:44]} Rfc8 {[%emt 0:16:30]} 13. h4 {[%emt 0:01:18]} Rab8 {[%emt 0:02:09]} 14. h5 {[%emt 0:00:40]} Rb6 {[%emt 0:00:27]} 15. Qc4 {[%emt 0:00:25]} c5 {[%emt 0:01:03]} 16. hxg6 {[%emt 0:02:44]} hxg6 {[%emt 0:00:00]} 17. dxc5 {[%emt 0:00:27]} Rxc5 {[%emt 0:02:34]} 18. Qh4 {[%emt 0:00:21]} Qxh4 {[%emt 0:02:11]} 19. Rxh4 {[%emt 0:00:11]} Rxc3 {[%emt 0:00:02]} 20. Rb1 {[%emt 0:07:27]} Rc2 {[%emt 0:01:59]} 21. f3 {[%emt 0:19:17]} Be5 {[%emt 0:12:02]} 22. Kf2 {[%emt 0:03:23]} Bxb2 {[%emt 0:05:25]} 23. Be3 {[%emt 0:01:37]} Ra6 {[%emt 0:00:33]} 24. a4 {[%emt 0:00:33]} Nf6 {[%emt 0:02:30]} 25. Rd1 {[%emt 0:04:59]} Rc8 {[%emt 0:01:16]} 26. Rd2 {[%emt 0:01:30]} Be5 {[%emt 0:01:09]} 27. Bg5 {[%emt 0:01:45]} Nh5 {[%emt 0:00:50]} 28. Rh1 {[%emt 0:07:01]} Rxa4 {[%emt 0:00:14]} 29. e3 {[%emt 0:08:10]} Ra1 {[%emt 0:01:24]} 30. f4 {[%emt 0:03:22]} Bf6 {[%emt 0:01:55]} 31. Rxh5 {[%emt 0:06:35]} Bc3 {[%emt 0:00:23]} 32. Rh6 {[%emt 0:00:52]} f6 {[%emt 0:02:06]} 33. Rd7 {[%emt 0:02:57]} fxg5 {[%emt 0:00:21]} 34. Rxg6+ {[%emt 0:00:35]} Kf8 {[%emt 0:00:26]} 35. Rxg5 {[%emt 0:00:10]} Be1+ {[%emt 0:00:50]} 36. Kf3 {[%emt 0:00:44]} Bh4 {[%emt 0:00:36]} 37. Rxf5+ {[%emt 0:00:07]} Ke8 {[%emt 0:00:17]} 38. Bb5 {[%emt 0:00:08]} a6 {[%emt 0:00:47]} 39. Rd1+ {[%emt 0:00:20]} 1-0

[Event "FIDE WAC U1700 2021"]
[Site "Rhodes"]
[Date "2021.10.20"]
[Round "4.1"]
[White "Ainakul, Mukhtar"]
[Black "Fishchuk, Vladyslav"]
[Result "1-0"]
[ECO "A23"]
[WhiteElo "1674"]
[BlackElo "1648"]
[Annotator "NA"]
[PlyCount "63"]
[EventDate "2021.10.17"]
[EventType "swiss"]
[EventCountry "GRE"]
[SourceTitle "playchess.com"]
[Source "ChessBase"]
[SourceQuality "1"]
[TimeControl "5400+30"]

1. c4 {[%emt 0:00:28]} e5 {[%emt 0:00:05]} 2. g3 {[%emt 0:00:04]} c6 {[%emt 0:00:04]} 3. Bg2 {[%emt 0:03:30]} d5 {[%emt 0:00:07]} 4. cxd5 {[%emt 0:04:05]} cxd5 {[%emt 0:00:15]} 5. Nc3 {[%emt 0:04:13]} Nf6 {[%emt 0:01:16]} 6. d3 Nc6 {[%emt 0:00:30]} 7. Nf3 d4 {[%emt 0:00:30]} 8. Nb1 Bb4+ {[%emt 0:00:30]} 9. Nbd2 O-O {[%emt 0:00:30]} 10. O-O Be6 {[%emt 0:00:30]} 11. a3 Bxd2 {[%emt 0:00:30]} 12. Bxd2 Rc8 {[%emt 0:00:30]} 13. b4 a6 {[%emt 0:00:30]} 14. Bg5 h6 {[%emt 0:00:30]} 15. Bxf6 Qxf6 {[%emt 0:00:30]} 16. Nd2 Qe7 {[%emt 0:00:30]} 17. Rc1 f5 {[%emt 0:00:30]} 18. Rc5 Bf7 {[%emt 0:00:30]} 19. Qc2 Na7 {[%emt 0:00:30]} 20. Rc1 b6 {[%emt 0:00:30]} 21. Rc7 Qd6 {[%emt 0:00:30]} 22. Bb7 Rxc7 {[%emt 0:00:30]} 23. Qxc7 Qxc7 {[%emt 0:00:30]} 24. Rxc7 Nb5 {[%emt 0:00:30]} 25. Re7 Nd6 {[%emt 0:00:30]} 26. Bxa6 Ra8 {[%emt 0:00:30]} 27. b5 Re8 {[%emt 0:00:30]} 28. Rd7 Re6 {[%emt 0:00:30]} 29. a4 Be8 {[%emt 0:00:30]} 30. Rd8 Kf8 {[%emt 0:00:30]} 31. Rb8 Nf7 {[%emt 0:00:30]} 32. Nc4 1-0

[Event "FIDE WAC U1700 2021"]
[Site "Rhodes"]
[Date "2021.10.20"]
[Round "4.2"]
[White "Ruzic, Milos"]
[Black "Sodbilegt, Naranbold"]
[Result "0-1"]
[ECO "B22"]
[WhiteElo "1666"]
[BlackElo "1638"]
[Annotator "NA"]
[PlyCount "72"]
[EventDate "2021.10.17"]
[EventType "swiss"]
[EventCountry "GRE"]
[SourceTitle "playchess.com"]
[Source "ChessBase"]
[SourceQuality "1"]
[TimeControl "5400+30"]

1. e4 c5 {[%emt 0:00:11]} 2. c3 {[%emt 0:00:18]} d5 {[%emt 0:00:05]} 3. e5 {[%emt 0:00:20]} d4 {[%emt 0:00:10]} 4. cxd4 {[%emt 0:00:32]} cxd4 {[%emt 0:00:02]} 5. Bc4 {[%emt 0:00:33]} Nc6 {[%emt 0:01:27]} 6. Nf3 {[%emt 0:00:35]} e6 {[%emt 0:00:33]} 7. O-O {[%emt 0:00:22]} Bc5 {[%emt 0:02:45]} 8. d3 {[%emt 0:02:11]} Nge7 {[%emt 0:01:35]} 9. Bf4 {[%emt 0:00:45]} Ng6 10. Bg3 {[%emt 0:00:30]} a6 11. a3 {[%emt 0:00:30]} b5 12. Ba2 {[%emt 0:00:30]} Bb7 13. Nbd2 {[%emt 0:00:30]} Be7 14. Rc1 {[%emt 0:00:30]} O-O 15. Ne4 {[%emt 0:00:30]} Na7 16. Nc5 {[%emt 0:00:30]} Bxc5 17. Rxc5 {[%emt 0:00:30]} Nc6 18. Qe2 {[%emt 0:00:30]} Qb6 19. Rfc1 {[%emt 0:00:30]} Rac8 20. b4 {[%emt 0:00:30]} a5 21. Qb2 {[%emt 0:00:30]} axb4 22. axb4 {[%emt 0:00:30]} Rfd8 23. Ng5 {[%emt 0:00:30]} Nce7 24. Ne4 {[%emt 0:00:30]} Bxe4 25. dxe4 {[%emt 0:00:30]} Nc6 26. Bb1 {[%emt 0:00:30]} h5 27. h4 {[%emt 0:00:30]} Nge7 28. Bd3 {[%emt 0:00:30]} Na7 29. f4 {[%emt 0:00:30]} Rxc5 30. Rxc5 {[%emt 0:00:30]} Nec6 31. Be1 {[%emt 0:00:30]} Qa6 32. Qd2 {[%emt 0:00:30]} Qa3 33. Bxb5 {[%emt 0:00:30]} Nxb5 34. Rxb5 {[%emt 0:00:30]} d3 35. Rc5 {[%emt 0:00:30]} Nd4 36. Rc3 {[%emt 0:00:30]} Qxc3 0-1

[Event "FIDE WAC U1700 2021"]
[Site "Rhodes"]
[Date "2021.10.20"]
[Round "4.3"]
[White "Murray, Sam"]
[Black "Abubakirov, Khumid"]
[Result "1/2-1/2"]
[ECO "B01"]
[WhiteElo "1674"]
[BlackElo "1615"]
[Annotator "NA"]
[PlyCount "54"]
[EventDate "2021.10.17"]
[EventType "swiss"]
[EventCountry "GRE"]
[SourceTitle "playchess.com"]
[Source "ChessBase"]
[SourceQuality "1"]
[TimeControl "5400+30"]

1. e4 {[%emt 0:00:04]} d5 {[%emt 0:04:15]} 2. exd5 {[%emt 0:00:15]} Qxd5 {[%emt 0:00:09]} 3. Ne2 {[%emt 0:00:15]} Bg4 {[%emt 0:00:10]} 4. Nbc3 {[%emt 0:00:15]} Qa5 {[%emt 0:00:15]} 5. h3 {[%emt 0:00:19]} Bh5 {[%emt 0:00:41]} 6. g4 {[%emt 0:04:18]} Bg6 {[%emt 0:00:06]} 7. Bg2 {[%emt 0:00:03]} c6 {[%emt 0:00:05]} 8. d3 {[%emt 0:00:19]} e6 {[%emt 0:00:12]} 9. Bf4 {[%emt 0:00:44]} e5 {[%emt 0:00:26]} 10. Bg3 {[%emt 0:00:23]} Nd7 11. Qd2 {[%emt 0:00:30]} f6 12. f4 {[%emt 0:00:30]} O-O-O 13. O-O-O {[%emt 0:00:30]} Bd6 14. f5 {[%emt 0:00:30]} Bf7 15. Ne4 {[%emt 0:00:30]} Qxd2+ 16. Kxd2 {[%emt 0:00:30]} Bf8 17. Bf2 {[%emt 0:00:30]} Kc7 18. a4 {[%emt 0:00:30]} Bd5 19. N2g3 {[%emt 0:00:30]} Bf7 20. h4 {[%emt 0:00:30]} Nb6 21. Bxb6+ {[%emt 0:00:30]} Kxb6 22. Ke3 {[%emt 0:00:30]} Rd4 23. b3 {[%emt 0:00:30]} Ne7 24. c4 {[%emt 0:00:30]} Nc8 25. g5 {[%emt 0:00:30]} Be7 26. gxf6 {[%emt 0:00:30]} gxf6 27. Bf3 {[%emt 0:00:30]} h5 1/2-1/2

[Event "FIDE WAC U1700 2021"]
[Site "Rhodes"]
[Date "2021.10.20"]
[Round "4.4"]
[White "Apostolakis, Ioannis"]
[Black "Bozkurt, Serkan"]
[Result "0-1"]
[ECO "D94"]
[WhiteElo "1423"]
[BlackElo "1668"]
[Annotator "NA"]
[PlyCount "52"]
[EventDate "2021.10.17"]
[EventType "swiss"]
[EventCountry "GRE"]
[SourceTitle "playchess.com"]
[Source "ChessBase"]
[SourceQuality "1"]
[TimeControl "5400+30"]

1. d4 {[%emt 0:06:19]} Nf6 {[%emt 0:00:14]} 2. c4 {[%emt 0:01:42]} g6 {[%emt 0:00:05]} 3. Nc3 {[%emt 0:00:14]} d5 {[%emt 0:00:09]} 4. e3 {[%emt 0:00:10]} Bg7 {[%emt 0:00:07]} 5. Nf3 {[%emt 0:00:35]} O-O {[%emt 0:00:21]} 6. Bd3 {[%emt 0:00:09]} dxc4 {[%emt 0:02:35]} 7. Bxc4 {[%emt 0:00:27]} c5 {[%emt 0:00:06]} 8. O-O {[%emt 0:00:14]} a6 9. a4 {[%emt 0:00:30]} Nc6 10. Ne5 {[%emt 0:00:30]} cxd4 11. Nxc6 {[%emt 0:00:30]} bxc6 12. exd4 {[%emt 0:00:30]} Bg4 13. Be2 {[%emt 0:00:30]} Bxe2 14. Qxe2 {[%emt 0:00:30]} e6 15. Be3 {[%emt 0:00:30]} Qd6 16. Rfd1 {[%emt 0:00:30]} Rfb8 17. Rac1 {[%emt 0:00:30]} a5 18. Qd2 {[%emt 0:00:30]} Qb4 19. Bf4 {[%emt 0:00:30]} Rb6 20. Qd3 {[%emt 0:00:30]} Nd5 21. Bd2 {[%emt 0:00:30]} Qxd4 22. Nxd5 {[%emt 0:00:30]} Qxd3 23. Nxb6 {[%emt 0:00:30]} Rd8 24. Nc4 {[%emt 0:00:30]} Bh6 25. Ne5 {[%emt 0:00:30]} Qe2 26. Nf3 {[%emt 0:00:30]} Bxd2 0-1

[Event "FIDE WAC U1700 2021"]
[Site "Rhodes"]
[Date "2021.10.20"]
[Round "4.5"]
[White "Perrakis, Polychronis"]
[Black "Sulaimanov, Tilekmatali"]
[Result "0-1"]
[ECO "B20"]
[WhiteElo "1627"]
[BlackElo "1657"]
[Annotator "NA"]
[PlyCount "58"]
[EventDate "2021.10.17"]
[EventType "swiss"]
[EventCountry "GRE"]
[SourceTitle "playchess.com"]
[Source "ChessBase"]
[SourceQuality "1"]
[TimeControl "5400+30"]

1. e4 c5 {[%emt 0:01:47]} 2. b3 {[%emt 0:00:33]} e6 {[%emt 0:05:22]} 3. Bb2 {[%emt 0:00:19]} d5 {[%emt 0:00:40]} 4. e5 {[%emt 0:06:07]} d4 5. f4 {[%emt 0:00:30]} Ne7 6. Nf3 {[%emt 0:00:30]} Nbc6 7. g3 {[%emt 0:00:30]} Ng6 8. d3 {[%emt 0:00:30]} f6 9. Qe2 {[%emt 0:00:30]} fxe5 10. fxe5 {[%emt 0:00:30]} Qc7 11. Bg2 {[%emt 0:00:30]} Ngxe5 12. Nxe5 {[%emt 0:00:30]} Nxe5 13. O-O {[%emt 0:00:30]} Bd7 14. Bxb7 {[%emt 0:00:30]} Qxb7 15. Qxe5 {[%emt 0:00:30]} O-O-O 16. Nd2 {[%emt 0:00:30]} Qd5 17. Nc4 {[%emt 0:00:30]} Be7 18. Qxd5 {[%emt 0:00:30]} exd5 19. Ne5 {[%emt 0:00:30]} Bh3 20. Rf7 {[%emt 0:00:30]} Bg5 21. Bc1 {[%emt 0:00:30]} Bf6 22. Nc6 {[%emt 0:00:30]} Rd7 23. Rxd7 {[%emt 0:00:30]} Bxd7 24. Na5 {[%emt 0:00:30]} Re8 25. Kf2 {[%emt 0:00:30]} Bg4 26. h3 {[%emt 0:00:30]} Bxh3 27. Bd2 {[%emt 0:00:30]} Rf8 28. Rh1 {[%emt 0:00:30]} Bh4+ 29. Bf4 {[%emt 0:00:30]} Rxf4+ 0-1